bitfinex/quotes_BTCUSD_20230117
["timestamp","ask_amount","ask_price","bid_price","bid_amount"]
[1673913903076,0.3664,21138.0,21131.0,0.946458]
[1673913903081,3.35537474,21139.0,21131.0,0.946458]
[1673913903300,3.35537474,21139.0,21132.0,0.6264523]
[1673913903519,3.35537474,21139.0,21133.0,0.6496293]
[1673913903741,3.14427559,21139.0,21134.0,0.26058723]
[1673913903965,3.14427559,21139.0,21135.0,0.1764523]
[1673913904177,0.321771,21138.0,21135.0,0.1764523]
[1673913904555,0.03276,21137.0,21135.0,0.1764523]
[1673913904773,3.00354282,21139.0,21134.0,0.55730093]
[1673913905058,3.00354282,21139.0,21134.0,0.1764523]
[1673913905059,0.46250377,21138.0,21134.0,0.1764523]
[1673913905323,0.03276,21137.0,21133.0,0.473177]
[1673913905585,0.321771,21136.0,21133.0,0.473177]
[1673913905863,0.19072595,21136.0,21133.0,0.473177]
[1673913906125,0.19072595,21136.0,21131.0,0.861629]
[1673913906389,0.19072595,21135.0,21131.0,0.861629]
[1673913906659,0.19072595,21135.0,21131.0,1.08299753]
[1673913906949,0.29073277,21138.0,21132.0,0.4764523]
[1673913907216,3.49610751,21139.0,21133.0,1.4445733]
[1673913907217,3.14427559,21139.0,21133.0,1.4445733]
[1673913907479,3.14427559,21139.0,21134.0,0.4764523]
[1673913907480,3.00354282,21139.0,21134.0,0.4764523]
[1673913908063,3.00354282,21139.0,21135.0,1.7205243]
[1673913908099,3.00354282,21139.0,21135.0,1.7290243]
[1673913908422,3.00354282,21139.0,21136.0,0.768471]
[1673913908674,3.00354282,21139.0,21137.0,1.749583]
[1673913908946,3.00354282,21139.0,21138.0,0.84313953]
[1673913909203,3.00354282,21139.0,21138.0,0.3]
[1673913909720,3.00354282,21139.0,21138.0,0.77216611]
[1673913909976,3.00354282,21139.0,21138.0,0.91748481]
[1673913910226,3.00354282,21139.0,21138.0,0.776971]
[1673913910487,3.00354282,21139.0,21138.0,1.18172583]
[1673913911820,3.00354282,21139.0,21138.0,1.65480683]
[1673913913579,3.00354282,21139.0,21138.0,2.14895634]
[1673913913831,2.07207577,21139.0,21138.0,2.35970786]
[1673913914116,2.26280172,21139.0,21138.0,1.64532064]
[1673913914361,2.07207577,21139.0,21138.0,1.50480683]
[1673913914859,2.07207577,21139.0,21138.0,1.64532064]
[1673913915110,2.07207577,21139.0,21138.0,1.79532064]
[1673913915358,2.07207577,21139.0,21138.0,1.65480683]
[1673913915606,2.07207577,21139.0,21138.0,1.79532064]
[1673913915857,2.07207577,21139.0,21138.0,1.65480683]
[1673913916621,2.07207577,21139.0,21138.0,2.17471206]
[1673913916872,2.07207577,21139.0,21138.0,2.00607216]
[1673913917128,2.07207577,21139.0,21138.0,2.17471216]
[1673913917381,2.07207577,21139.0,21138.0,2.00679066]
[1673913917632,2.07207577,21139.0,21138.0,2.03411556]
[1673913917892,2.07207577,21139.0,21138.0,2.31508842]
[1673913918152,1.06725952,21139.0,21138.0,2.8181059]
[1673913918400,0.00410964,21140.0,21138.0,2.83774397]
[1673913918651,0.00367654,21141.0,21139.0,3.13229015]
[1673913918901,0.19440249,21141.0,21140.0,0.769671]
[1673913919171,0.00367654,21141.0,21140.0,1.897279]
[1673913920185,0.00367654,21141.0,21140.0,1.749379]
[1673913920467,0.00367654,21141.0,21140.0,1.26820349]
[1673913920727,0.00367654,21141.0,21140.0,1.62791171]
[1673913920990,0.00367654,21141.0,21140.0,1.74815941]
[1673913921253,0.00354282,21142.0,21141.0,0.15]
[1673913921523,0.00354282,21142.0,21141.0,0.944785]
[1673913921782,0.00354282,21142.0,21141.0,1.67492587]
[1673913922055,0.00354282,21142.0,21141.0,1.68342587]
[1673913922355,2.82e-06,21142.0,21141.0,1.68342587]
[1673913922617,2.82e-06,21142.0,21141.0,1.69880737]
[1673913924928,2.82e-06,21142.0,21141.0,1.54880737]
[1673913925441,2.82e-06,21142.0,21141.0,1.69570737]
[1673913925702,2.82e-06,21142.0,21141.0,2.5007015]
[1673913925962,2.82e-06,21142.0,21141.0,2.67643958]
[1673913926492,2.82e-06,21142.0,21141.0,2.53522756]
[1673913927288,2.82e-06,21142.0,21141.0,2.17290906]
[1673913927556,2.82e-06,21142.0,21141.0,2.53522756]
[1673913928116,0.0043789,21147.0,21143.0,0.473026]
[1673913928389,0.0043789,21147.0,21146.0,0.1469]
[1673913928827,0.0043789,21147.0,21146.0,2.89771728]
[1673913928858,0.0043789,21147.0,21146.0,2.360279]
[1673913929130,0.0043789,21147.0,21146.0,2.668779]
[1673913929396,0.0043789,21147.0,21146.0,2.521879]
[1673913929675,0.0043789,21147.0,21146.0,2.70513492]
[1673913929947,0.0043789,21147.0,21146.0,2.85303492]
[1673913931520,0.0043789,21147.0,21146.0,2.221879]
[1673913931747,0.0043789,21147.0,21146.0,2.213379]
[1673913932010,0.0043789,21147.0,21146.0,2.21373939]
[1673913932822,0.0043789,21147.0,21146.0,2.51373939]
[1673913933095,0.0043789,21147.0,21146.0,2.52223939]
[1673913933364,0.0043789,21147.0,21146.0,2.92001768]
[1673913933637,0.05087924,21147.0,21146.0,2.92001768]
[1673913933937,0.00349633,21148.0,21147.0,0.10217476]
[1673913934373,0.00436106,21149.0,21147.0,1.568902]
[1673913934600,0.00436106,21149.0,21148.0,2.82353965]
[1673913934828,0.00436106,21149.0,21148.0,3.12353965]
[1673913935518,0.06451921,21162.0,21149.0,0.15]
[1673913935746,0.19072595,21161.0,21152.0,1.418245]
[1673913935970,0.19072595,21161.0,21153.0,0.71662642]
[1673913936199,0.66329995,21161.0,21154.0,0.1764523]
[1673913936489,0.15,21160.0,21153.0,0.6443205]
[1673913936739,0.34072595,21160.0,21154.0,0.07949379]
[1673913937271,0.34072595,21160.0,21149.0,3.102126]
[1673913937272,0.1479,21157.0,21149.0,3.102126]
[1673913937523,0.16429767,21153.0,21149.0,3.102126]
[1673913937801,0.16429767,21153.0,21149.0,2.6293]
[1673913937802,0.19072595,21152.0,21149.0,2.6293]
[1673913938078,0.19072595,21151.0,21146.0,0.472891]
[1673913938315,0.19072595,21151.0,21149.0,0.25]
[1673913938567,0.16429767,21153.0,21149.0,0.25]
[1673913938831,0.31429767,21153.0,21147.0,0.0945798]
[1673913939101,0.19072595,21152.0,21149.0,0.25]
[1673913939582,0.16429767,21153.0,21149.0,0.28445798]
[1673913939853,0.16429767,21153.0,21149.0,0.75728798]
[1673913940640,0.16429767,21153.0,21150.0,1.221771]
[1673913940899,0.16429767,21153.0,21151.0,1.417351]
[1673913941153,0.16429767,21153.0,21152.0,0.53508621]
[1673913941412,0.16429767,21153.0,21152.0,1.30785421]
[1673913941707,0.16429767,21153.0,21152.0,1.46635421]
[1673913942195,0.16429767,21153.0,21152.0,2.07071906]
[1673913942765,0.00650578,21158.0,21153.0,0.2588698]
[1673913943034,0.00650578,21158.0,21154.0,2.048407]
[1673913943531,0.00650578,21158.0,21155.0,0.321771]
[1673913943801,0.00650578,21158.0,21156.0,1.09445]
[1673913944054,0.00650578,21158.0,21157.0,0.321771]
[1673913944331,0.00650578,21158.0,21157.0,0.1567134]
[1673913944830,0.00650578,21158.0,21157.0,0.6293694]
[1673913945092,0.00650578,21158.0,21157.0,0.9293694]
[1673913945356,0.00650578,21158.0,21157.0,1.2511404]
[1673913945626,0.00650578,21158.0,21157.0,2.1011404]
[1673913946416,0.00650578,21158.0,21157.0,2.1096404]
[1673913947240,0.00650578,21158.0,21157.0,1.94570019]
[1673913948013,2.55186838,21161.0,21157.0,2.44416262]
[1673913948284,2.55186838,21161.0,21158.0,0.780271]
[1673913948545,2.74259433,21161.0,21159.0,1.82768102]
[1673913948804,2.55186838,21161.0,21159.0,1.50591002]
[1673913949342,2.55186838,21161.0,21159.0,1.75591002]
[1673913949621,2.55186838,21161.0,21160.0,0.3]
[1673913950139,2.55186838,21161.0,21160.0,0.86364879]
[1673913950142,2.55186838,21161.0,21160.0,1.46364879]
[1673913950400,2.55186838,21161.0,21160.0,1.72214879]
[1673913950664,2.55186838,21161.0,21160.0,2.04391979]
[1673913951199,2.55186838,21161.0,21160.0,1.631089]
[1673913951981,2.55186838,21161.0,21160.0,1.95286]
[1673913952243,2.55186838,21161.0,21160.0,2.30478235]
[1673913952760,2.55186838,21161.0,21160.0,1.95286]
[1673913953026,2.74259433,21161.0,21160.0,1.65286]
[1673913953281,2.55186838,21161.0,21160.0,1.322589]
[1673913953836,2.55186838,21161.0,21160.0,1.64436]
[1673913954124,2.74259433,21161.0,21160.0,1.322589]
[1673913954387,2.55186838,21161.0,21160.0,0.722589]
[1673913954640,2.55186838,21161.0,21160.0,0.8893694]
[1673913954900,2.55186838,21161.0,21160.0,0.722589]
[1673913955638,2.50650578,21161.0,21160.0,1.022589]
[1673913956674,2.54429609,21161.0,21160.0,1.022589]
[1673913957461,2.54429609,21161.0,21160.0,1.622589]
[1673913957740,2.54429609,21161.0,21160.0,2.13199381]
[1673913957973,2.54429609,21161.0,21160.0,2.30412016]
[1673913958484,2.50650578,21161.0,21160.0,2.30461589]
[1673913960024,2.50650578,21161.0,21160.0,1.95286]
[1673913960788,2.69723173,21161.0,21160.0,1.04436]
[1673913961066,2.69723173,21161.0,21160.0,0.722589]
[1673913961067,2.50650578,21161.0,21160.0,0.722589]
[1673913962660,2.53792373,21161.0,21160.0,1.031089]
[1673913963452,2.53792373,21161.0,21160.0,1.022589]
[1673913963932,2.53792373,21161.0,21160.0,0.722589]
[1673913964493,2.53792373,21161.0,21160.0,0.731089]
[1673913964791,2.53792373,21161.0,21160.0,1.55429014]
[1673913965007,2.53792373,21161.0,21160.0,1.70209014]
[1673913965293,2.28413136,21161.0,21160.0,1.70209014]
[1673913965613,2.28413136,21161.0,21160.0,2.00209014]
[1673913966210,2.28413136,21161.0,21160.0,1.65066]
[1673913966672,2.25271341,21161.0,21160.0,1.65066]
[1673913969376,2.01026741,21161.0,21160.0,2.49388001]
[1673913969875,0.00720039,21162.0,21161.0,1.87554014]
[1673913970142,0.00720039,21162.0,21161.0,4.15132337]
[1673913970679,0.00720039,21162.0,21161.0,4.40132337]
[1673913971194,0.00720039,21167.0,21161.0,4.40132337]
[1673913971195,0.00720039,21167.0,21161.0,4.54192791]
[1673913971461,0.00720039,21167.0,21163.0,0.1479]
[1673913971725,0.00720039,21167.0,21166.0,0.6]
[1673913972019,0.00720039,21167.0,21166.0,2.647636]
[1673913972303,0.00720039,21167.0,21166.0,2.166681]
[1673913972538,0.00720039,21167.0,21166.0,2.416681]
[1673913973320,0.09625039,21167.0,21166.0,1.322455]
[1673913973583,0.09625039,21167.0,21166.0,0.25]
[1673913973856,0.41802139,21167.0,21166.0,0.25]
[1673913974119,0.00720039,21167.0,21166.0,0.25]
[1673913974650,0.28697634,21167.0,21166.0,0.25]
[1673913974908,0.41802139,21167.0,21166.0,0.25]
[1673913976053,0.48959353,21167.0,21166.0,0.25]
[1673913976545,0.94309636,21167.0,21166.0,0.25]
[1673913976585,0.6450539,21167.0,21166.0,0.25]
[1673913976810,0.6450539,21167.0,21159.0,0.472602]
[1673913977071,0.1479,21165.0,21158.0,1.28361756]
[1673913977339,0.51249695,21164.0,21158.0,1.28361756]
[1673913977644,0.22348595,21163.0,21158.0,1.28361756]
[1673913977904,0.51249695,21162.0,21158.0,1.072615]
[1673913978168,0.22348595,21161.0,21157.0,0.472645]
[1673913978441,0.51249695,21160.0,21157.0,0.472645]
[1673913978711,0.03276,21159.0,21157.0,0.472645]
[1673913979013,0.31942,21162.0,21156.0,0.472656]
[1673913979287,0.66039695,21161.0,21155.0,0.472689]
[1673913979543,0.66039695,21161.0,21154.0,0.472709]
[1673913979544,0.1479,21159.0,21154.0,0.472709]
[1673913979803,0.51249695,21158.0,21153.0,0.472736]
[1673913980088,0.03276,21157.0,21153.0,0.472736]
[1673913980347,0.19072595,21158.0,21154.0,0.00036025]
[1673913980603,0.31942,21162.0,21155.0,1.072697]
[1673913980868,0.16942,21162.0,21155.0,1.072697]
[1673913981141,0.36014595,21162.0,21155.0,1.072697]
[1673913981433,0.321771,21161.0,21155.0,1.072697]
[1673913981914,0.03276,21160.0,21155.0,1.072697]
[1673913981918,0.22348595,21160.0,21155.0,1.072697]
[1673913982183,0.321771,21159.0,21155.0,0.472697]
[1673913982435,0.03276,21158.0,21155.0,0.472697]
[1673913982704,0.321771,21157.0,21155.0,0.472697]
[1673913982946,0.17224,21160.0,21155.0,0.472697]
[1673913983204,0.36296595,21160.0,21155.0,0.472697]
[1673913983485,0.70497277,21163.0,21156.0,0.3]
[1673913983749,0.3928,21163.0,21158.0,0.472632]
[1673913984011,0.61324277,21164.0,21158.0,0.472632]
[1673913984535,0.321771,21163.0,21158.0,0.472632]
[1673913984788,0.03276,21162.0,21158.0,0.472632]
[1673913985042,0.321771,21161.0,21158.0,0.472632]
[1673913985326,0.19072595,21161.0,21158.0,0.472632]
[1673913985789,0.19072595,21161.0,21155.0,0.6]
[1673913985790,0.51249695,21160.0,21155.0,0.6]
[1673913985793,0.321771,21160.0,21155.0,0.6]
[1673913986058,0.321771,21160.0,21154.0,0.472709]
[1673913986059,0.22348595,21159.0,21154.0,0.472709]
[1673913986310,0.66249695,21158.0,21153.0,0.472731]
[1673913986577,0.22348595,21157.0,21153.0,0.472731]
[1673913986823,0.22348595,21157.0,21152.0,1.28391441]
[1673913986824,0.51249695,21156.0,21152.0,1.28391441]
[1673913987080,0.22348595,21155.0,21152.0,1.28391441]
[1673913987367,0.19072595,21155.0,21152.0,1.28391441]
[1673913987628,0.19072595,21155.0,21152.0,0.81116541]
[1673913987906,0.321771,21154.0,21152.0,0.21116541]
[1673913988174,0.03276,21153.0,21152.0,0.21116541]
[1673913988447,0.52582232,21158.0,21152.0,0.68393341]
[1673913988715,0.1479,21159.0,21152.0,1.28393341]
[1673913988983,0.95197372,21159.0,21152.0,1.28393341]
[1673913989254,0.321771,21158.0,21152.0,1.28393341]
[1673913989824,0.03276,21157.0,21152.0,1.28393341]
[1673913990076,0.321771,21156.0,21152.0,1.28393341]
[1673913990342,0.46253277,21160.0,21152.0,1.28393341]
[1673913990628,0.14073277,21162.0,21155.0,0.6]
[1673913990892,1.10581146,21164.0,21158.0,0.6]
[1673913990893,0.35183192,21164.0,21158.0,0.6]
[1673913991158,0.21109915,21165.0,21159.0,2.4219467]
[1673913991453,0.14073277,21166.0,21162.0,0.6]
[1673913991720,0.03635962,21167.0,21163.0,0.772518]
[1673913992006,0.03635962,21167.0,21165.0,0.6]
[1673913992505,0.03635962,21167.0,21165.0,1.072464]
[1673913993025,0.03635962,21167.0,21162.0,0.17478]
[1673913993026,0.03635962,21167.0,21162.0,1.072541]
[1673913993279,0.51249695,21166.0,21162.0,1.072541]
[1673913993550,0.22348595,21165.0,21162.0,1.072541]
[1673913993795,0.19072595,21165.0,21162.0,1.072541]
[1673913994053,0.19072595,21165.0,21162.0,0.6]
[1673913994320,0.17709239,21167.0,21162.0,1.072538]
[1673913994594,0.03635962,21167.0,21162.0,1.072538]
[1673913994851,0.03635962,21167.0,21163.0,0.3]
[1673913995114,0.03635962,21167.0,21164.0,0.472496]
[1673913995376,0.03635962,21167.0,21165.0,0.6]
[1673913995648,0.03635962,21167.0,21165.0,1.07247]
[1673913996498,0.03635962,21167.0,21163.0,0.472512]
[1673913996499,0.22708557,21167.0,21163.0,0.472512]
[1673913996752,0.321771,21166.0,21163.0,1.072512]
[1673913997010,0.19072595,21166.0,21163.0,1.072512]
[1673913997277,0.03635962,21167.0,21163.0,1.072512]
[1673913997576,0.22708557,21167.0,21163.0,1.072512]
[1673913997837,0.22708557,21167.0,21163.0,0.472512]
[1673913998095,0.22708557,21167.0,21161.0,0.6]
[1673913998096,0.37378557,21167.0,21161.0,0.6]
[1673913998358,0.51249695,21166.0,21161.0,0.6]
[1673913998666,0.19072595,21166.0,21161.0,0.6]
[1673913999229,0.19072595,21165.0,21159.0,1.072602]
[1673913999482,0.19072595,21164.0,21159.0,1.072602]
[1673913999749,0.19072595,21163.0,21159.0,0.6]
[1673914000020,0.19072595,21162.0,21159.0,0.6]
[1673914000844,0.1464,21163.0,21157.0,1.0552]
[1673914001103,0.34072595,21162.0,21157.0,0.6]
[1673914001390,0.34072595,21162.0,21156.0,0.48481952]
[1673914001391,0.33812595,21161.0,21156.0,0.01214752]
[1673914001665,0.34072595,21160.0,21156.0,0.01214752]
[1673914001917,0.622558,21162.0,21157.0,0.6]
[1673914002175,0.472558,21162.0,21157.0,0.6]
[1673914002425,0.66328395,21162.0,21157.0,0.6]
[1673914003045,0.34072595,21161.0,21156.0,0.01214752]
[1673914003243,0.2964,21161.0,21156.0,0.01214752]
[1673914003505,1.43228395,21161.0,21156.0,0.01214752]
[1673914003765,1.28228395,21161.0,21156.0,0.01214752]
[1673914004033,0.80971395,21161.0,21156.0,0.01214752]
[1673914004296,0.472558,21162.0,21157.0,0.6]
[1673914004568,0.472517,21164.0,21157.0,1.072643]
[1673914004824,0.61321177,21165.0,21160.0,0.6]
[1673914005085,0.64952839,21167.0,21160.0,0.6]
[1673914005375,0.17709239,21167.0,21163.0,0.6]
[1673914005643,0.03635962,21167.0,21163.0,0.6]
[1673914006445,0.03635962,21167.0,21166.0,0.6]
[1673914007211,0.03635962,21167.0,21162.0,0.6]
[1673914007471,0.9306632,21165.0,21162.0,0.6]
[1673914007742,0.51249695,21164.0,21159.0,1.534099]
[1673914008012,0.48812595,21163.0,21159.0,0.6]
[1673914008289,0.66249695,21162.0,21159.0,0.6]
[1673914008531,0.51249695,21161.0,21159.0,0.6]
[1673914008800,0.03276,21160.0,21159.0,0.6]
[1673914009334,0.12181,21160.0,21159.0,0.6]
[1673914009635,0.03276,21160.0,21159.0,0.6]
[1673914010161,0.12181,21160.0,21156.0,0.01214752]
[1673914010425,0.98511295,21159.0,21156.0,0.01214752]
[1673914010691,0.03276,21158.0,21156.0,0.01214752]
[1673914010994,0.321771,21157.0,21156.0,0.01214752]
[1673914011508,0.1017,21160.0,21156.0,0.01214752]
[1673914011780,0.76501695,21160.0,21156.0,0.01214752]
[1673914012053,0.321771,21159.0,21156.0,0.01214752]
[1673914012317,0.03276,21158.0,21156.0,0.01214752]
[1673914012572,0.321771,21157.0,21156.0,0.01214752]
[1673914012826,0.71502377,21160.0,21156.0,0.01214752]
[1673914013085,0.574291,21160.0,21156.0,0.01214752]
[1673914013372,0.321771,21159.0,21158.0,0.6]
[1673914013977,0.1017,21160.0,21158.0,0.6]
[1673914017189,0.1017,21160.0,21158.0,1.072627]
[1673914017454,0.1017,21160.0,21159.0,0.621771]
[1673914017720,0.1017,21160.0,21159.0,0.794383]
[1673914017988,0.1017,21160.0,21159.0,1.072612]
[1673914018244,0.1017,21160.0,21159.0,0.6]
[1673914018767,0.423471,21160.0,21159.0,0.6]
[1673914019327,0.423471,21160.0,21156.0,0.61214752]
[1673914019596,0.22348595,21159.0,21156.0,0.61214752]
[1673914019875,0.321771,21158.0,21156.0,0.61214752]
[1673914020134,0.03276,21157.0,21156.0,0.61214752]
[1673914020402,0.1017,21160.0,21156.0,1.08481152]
[1673914020656,0.1017,21160.0,21159.0,0.6]
[1673914020913,0.1017,21160.0,21156.0,0.48481152]
[1673914021192,0.29242595,21160.0,21156.0,0.61214752]
[1673914021463,0.321771,21159.0,21156.0,0.61214752]
[1673914021955,0.1017,21160.0,21156.0,0.61214752]
[1673914021961,0.1017,21160.0,21156.0,1.08482552]
[1673914022228,0.1017,21160.0,21159.0,0.6]
[1673914022499,0.1017,21160.0,21159.0,1.221771]
[1673914022761,0.1017,21160.0,21159.0,2.166995]
[1673914023279,0.1017,21160.0,21159.0,2.54807362]
[1673914023546,0.1017,21160.0,21159.0,1.845224]
[1673914024108,0.1017,21160.0,21159.0,2.166995]
[1673914024412,0.1017,21160.0,21159.0,2.175495]
[1673914026345,0.1017,21160.0,21159.0,2.166995]
[1673914026616,0.12642981,21160.0,21159.0,2.166995]
[1673914026875,0.12642981,21160.0,21159.0,1.566995]
[1673914027394,0.12642981,21160.0,21159.0,2.166995]
[1673914029413,0.12642981,21160.0,21159.0,2.79139669]
[1673914029770,0.10159164,21160.0,21159.0,2.46368975]
[1673914030031,0.10159164,21160.0,21159.0,2.322695]
[1673914030334,0.10159164,21160.0,21159.0,2.175495]
[1673914031630,0.12643702,21160.0,21159.0,2.166995]
[1673914032700,0.10159164,21160.0,21159.0,2.166995]
[1673914033507,0.12644086,21160.0,21159.0,2.166995]
[1673914035122,0.11379678,21160.0,21159.0,3.16726613]
[1673914035368,0.11379678,21160.0,21159.0,3.17307101]
[1673914035370,0.11379678,21160.0,21159.0,2.82058481]
[1673914035371,0.06860705,21160.0,21159.0,2.82058481]
[1673914035375,0.9306632,21165.0,21160.0,0.11378]
[1673914035621,0.9306632,21165.0,21164.0,0.746]
[1673914035893,0.9306632,21165.0,21164.0,2.647771]
[1673914036148,0.9306632,21165.0,21164.0,2.166771]
[1673914036407,0.9306632,21165.0,21164.0,0.6]
[1673914036655,0.95342999,21165.0,21164.0,0.6]
[1673914038190,1.27520099,21165.0,21164.0,0.6]
[1673914038441,1.27520099,21165.0,21161.0,1.072556]
[1673914038686,0.03276,21164.0,21161.0,1.072556]
[1673914038926,0.19072595,21164.0,21161.0,0.6]
[1673914039174,0.95342999,21165.0,21161.0,0.6]
[1673914039712,0.95342999,21165.0,21162.0,0.3]
[1673914039989,0.95342999,21165.0,21164.0,0.6]
[1673914040995,1.27520099,21165.0,21164.0,0.6]
[1673914041495,0.95342999,21165.0,21164.0,0.6]
[1673914041751,0.95342999,21165.0,21161.0,0.6]
[1673914042002,0.51249695,21164.0,21161.0,0.6]
[1673914042255,0.19072595,21164.0,21161.0,0.6]
[1673914042512,0.95342999,21165.0,21161.0,0.6]
[1673914042765,0.95342999,21165.0,21161.0,1.072564]
[1673914043770,1.14415594,21165.0,21161.0,1.072564]
[1673914044018,0.95342999,21165.0,21161.0,1.072564]
[1673914044262,0.95342999,21165.0,21164.0,0.6]
[1673914044507,0.95342999,21165.0,21164.0,1.545]
[1673914044997,0.95342999,21165.0,21164.0,1.845]
[1673914046083,0.95342999,21165.0,21164.0,2.166771]
[1673914049809,0.95342999,21165.0,21164.0,2.16713108]
[1673914053217,0.95342999,21165.0,21164.0,2.67653281]
[1673914054029,0.95342999,21165.0,21164.0,2.92126281]
[1673914054807,0.95342999,21165.0,21164.0,2.166771]
[1673914055074,1.14415594,21165.0,21164.0,1.545]
[1673914055410,0.95342999,21165.0,21164.0,1.545]
[1673914055877,0.95335933,21165.0,21164.0,1.545]
[1673914056166,0.95335933,21165.0,21164.0,0.6]
[1673914056167,1.14408528,21165.0,21164.0,0.6]
[1673914056426,0.95335933,21165.0,21162.0,0.472541]
[1673914056960,0.95335933,21165.0,21164.0,0.6]
[1673914057774,0.02276679,21165.0,21164.0,0.6]
[1673914058029,0.02276679,21165.0,21164.0,0.9]
[1673914059076,0.02276679,21165.0,21164.0,1.3725]
[1673914059331,0.02276679,21165.0,21164.0,1.0725]
[1673914059874,0.02276679,21165.0,21164.0,0.6]
[1673914061687,0.43358779,21165.0,21163.0,0.4725]
[1673914061926,0.03276,21164.0,21162.0,0.472529]
[1673914062233,0.11181679,21165.0,21162.0,0.472529]
[1673914062933,0.321771,21164.0,21162.0,0.472529]
[1673914063191,0.02276679,21165.0,21162.0,0.472529]
[1673914064800,0.02276679,21165.0,21163.0,0.0003601]
[1673914065322,0.02276679,21165.0,21162.0,0.472529]
[1673914066659,0.02276679,21165.0,21163.0,0.3]
[1673914066917,0.02276679,21165.0,21162.0,0.472529]
[1673914070412,0.02276679,21165.0,21164.0,0.6]
[1673914070666,0.02276679,21165.0,21164.0,1.3725]
[1673914071453,0.02276679,21165.0,21164.0,1.4965]
[1673914071709,0.02276679,21165.0,21164.0,1.818271]
[1673914071966,0.02276679,21165.0,21164.0,1.968271]
[1673914072215,0.02276679,21165.0,21164.0,1.818271]
[1673914072723,0.02276679,21165.0,21163.0,1.29811917]
[1673914072724,0.21349274,21165.0,21163.0,0.35310517]
[1673914072997,0.21349274,21165.0,21161.0,1.42566417]
[1673914072998,0.02276679,21165.0,21161.0,1.42566417]
[1673914073290,0.19072595,21164.0,21161.0,1.072559]
[1673914073527,0.19072595,21163.0,21161.0,0.6]
[1673914074031,0.321771,21162.0,21161.0,0.6]
[1673914074290,0.35183192,21166.0,21161.0,0.6]
[1673914074543,0.14073277,21166.0,21161.0,1.072562]
[1673914075133,0.14073277,21166.0,21161.0,0.61380361]
[1673914075326,0.23832621,21167.0,21164.0,0.6]
[1673914075327,0.16795983,21167.0,21164.0,0.6]
[1673914075865,0.37905898,21167.0,21164.0,0.6]
[1673914076101,0.37905898,21167.0,21165.0,0.1251]
[1673914076102,0.02722706,21167.0,21165.0,0.1251]
[1673914076431,0.02722706,21167.0,21166.0,1.540681]
[1673914076645,0.02722706,21167.0,21166.0,1.840681]
[1673914076889,0.02722706,21167.0,21166.0,1.690681]
[1673914077418,0.02722706,21167.0,21166.0,2.290681]
[1673914077660,0.02722706,21167.0,21166.0,3.47558152]
[1673914077915,0.02722706,21167.0,21166.0,3.48408152]
[1673914078171,0.02722706,21167.0,21166.0,3.27196338]
[1673914078433,0.02722706,21167.0,21166.0,3.20092194]
[1673914078694,0.02722706,21167.0,21166.0,3.34225476]
[1673914079212,0.02716246,21167.0,21166.0,3.34225476]
[1673914079487,0.02716246,21167.0,21166.0,3.33375476]
[1673914079761,0.02716246,21167.0,21166.0,3.33375685]
[1673914080021,0.02716246,21167.0,21166.0,3.33364229]
[1673914080557,0.02716246,21167.0,21166.0,3.13715897]
[1673914080828,0.00873108,21169.0,21166.0,4.13625185]
[1673914081135,0.00873108,21169.0,21168.0,1.74595417]
[1673914081389,0.00873108,21169.0,21168.0,4.19589547]
[1673914081833,0.00873108,21169.0,21168.0,4.69899159]
[1673914081836,0.00873108,21169.0,21168.0,4.98159737]
[1673914082058,0.00720039,21170.0,21168.0,4.69899159]
[1673914082282,0.00822711,21174.0,21169.0,2.27874072]
[1673914082503,0.00822711,21174.0,21173.0,1.08634]
[1673914082726,0.00822711,21174.0,21173.0,2.08477112]
[1673914082978,0.00822711,21174.0,21173.0,3.64297453]
[1673914083520,0.00822711,21174.0,21173.0,3.5673537]
[1673914083776,0.00822711,21174.0,21173.0,2.638668]
[1673914085516,0.00822711,21174.0,21173.0,3.13102812]
[1673914085782,0.00822711,21174.0,21173.0,2.762868]
[1673914087372,0.00822711,21174.0,21173.0,3.84437981]
[1673914087647,0.00822711,21174.0,21173.0,3.97677981]
[1673914087897,0.00822711,21174.0,21173.0,4.74208622]
[1673914088420,0.00822711,21174.0,21173.0,3.13072812]
[1673914088686,0.00822711,21174.0,21173.0,3.74082981]
[1673914088687,0.00532711,21174.0,21173.0,3.74082981]
[1673914088976,0.01218695,21175.0,21174.0,0.15]
[1673914089249,0.0083086,21176.0,21174.0,2.09790981]
[1673914089528,0.0083086,21176.0,21175.0,1.41583281]
[1673914089789,0.0083086,21176.0,21175.0,2.66884281]
[1673914090360,8.6e-06,21176.0,21175.0,2.70545901]
[1673914090581,0.00965838,21183.0,21175.0,3.05885901]
[1673914090900,0.20038433,21183.0,21181.0,0.6]
[1673914091157,0.20038433,21183.0,21182.0,2.674015]
[1673914091158,0.00965838,21183.0,21182.0,2.674015]
[1673914091416,0.00965838,21183.0,21182.0,3.05067512]
[1673914091678,0.00965838,21183.0,21182.0,2.296465]
[1673914091933,0.00965838,21183.0,21182.0,2.287965]
[1673914092645,0.00965838,21183.0,21182.0,2.887965]
[1673914092926,0.00965838,21183.0,21182.0,1.987965]
[1673914093176,0.28943433,21183.0,21180.0,0.47214]
[1673914093442,0.00965838,21183.0,21180.0,0.47214]
[1673914093708,0.00965838,21183.0,21182.0,0.6]
[1673914093964,0.00965838,21183.0,21182.0,1.991067]
[1673914094223,0.00965838,21183.0,21182.0,2.35922712]
[1673914094479,0.02849983,21183.0,21182.0,2.96492512]
[1673914094799,0.02849983,21183.0,21182.0,3.26528489]
[1673914095006,0.02849983,21183.0,21182.0,3.74248658]
[1673914095263,0.02849983,21183.0,21182.0,3.77910278]
[1673914095778,0.02849983,21183.0,21182.0,3.13595035]
[1673914096038,0.02849983,21183.0,21182.0,1.99142677]
[1673914096573,0.00965838,21183.0,21182.0,1.99142677]
[1673914096810,0.09870838,21183.0,21180.0,0.47214]
[1673914097067,0.28943433,21183.0,21180.0,0.47214]
[1673914097592,0.11764998,21183.0,21180.0,0.47214]
[1673914097846,0.02859998,21183.0,21180.0,0.47214]
[1673914098655,0.00965838,21183.0,21180.0,0.47214]
[1673914098907,0.00965838,21183.0,21181.0,0.3]
[1673914099185,0.00965838,21183.0,21181.0,0.772116]
[1673914100263,0.00965838,21183.0,21181.0,1.372116]
[1673914100537,0.0189069,21182.0,21181.0,0.472116]
[1673914100788,0.0189069,21182.0,21181.0,0.772116]
[1673914101838,0.0189069,21182.0,21181.0,0.472116]
[1673914103444,0.1079569,21182.0,21179.0,0.472152]